bitfinex-derivatives/quotes_SOLF0:USTF0_20250901
["timestamp","ask_amount","ask_price","bid_price","bid_amount"]
[1756734552565,132.59124658,200.33,200.29,0.037802]
[1756734553562,4.49124658,200.3,200.16,7.92]
[1756734553858,4.49124658,200.27,200.17,4.53988244]
[1756734554063,66.06,200.26,200.18,4.53988244]
[1756734554263,66.06,200.26,200.16,7.92]
[1756734554264,113.24,200.25,200.19,4.53988244]
[1756734554461,113.24,200.24,200.2,4.53988244]
[1756734554658,113.24,200.24,200.21,4.53988244]
[1756734554860,113.24,200.24,200.17,7.92]
[1756734554861,0.03303447,200.23,200.12,12.41124658]
[1756734555167,0.03303447,200.23,200.13,4.54232195]
[1756734555464,0.03303447,200.23,200.14,4.54232195]
[1756734555760,0.03303447,200.23,200.15,4.54232195]
[1756734555961,0.03303447,200.23,200.16,4.54232195]
[1756734556161,0.03303447,200.23,200.17,4.54232195]
[1756734556364,0.03303447,200.23,200.18,4.54232195]
[1756734556565,0.03303447,200.23,200.19,4.54015989]
[1756734556765,4.49124658,200.21,200.18,0.03282118]
[1756734557265,4.99124658,200.21,200.07,7.92]
[1756734557464,0.03793818,200.22,200.08,4.54245399]
[1756734557659,4.49124658,200.18,200.09,4.54245399]
[1756734557860,4.49124658,200.15,200.1,4.54245399]
[1756734558057,24.64,200.14,200.03,7.92]
[1756734558367,24.64,200.14,200.04,4.54522737]
[1756734558570,4.49124658,200.12,200.05,4.54522737]
[1756734558867,74.27383479,200.11,200.07,7.92]
[1756734559061,74.27383479,200.11,200.08,4.54522737]
[1756734559363,74.24,200.11,200.09,4.54522737]
[1756734559567,74.24,200.11,200.03,7.92]
[1756734559865,118.9,200.1,200.04,4.5470589]
[1756734560060,118.9,200.1,200.05,4.5470589]
[1756734560262,118.9,200.1,200.02,7.92]
[1756734560263,0.03273402,200.12,200.06,4.5470589]
[1756734560566,128.08,200.11,200.07,4.5470589]
[1756734560866,50.3,200.1,200.08,4.5470589]
[1756734561066,50.3,200.1,200.02,7.92]
[1756734561267,50.3,200.1,200.03,4.54838601]
[1756734561467,50.3,200.1,200.04,4.54838601]
[1756734561662,50.3,200.1,200.02,7.92]
[1756734561663,50.3,200.1,200.05,4.54838601]
[1756734561869,50.3,200.1,200.06,4.54823505]
[1756734562066,50.3,200.1,200.07,4.54823505]
[1756734562266,50.3,200.1,200.08,4.54823505]
[1756734562466,99.16,200.1,200.09,4.54823505]
[1756734563158,0.03232821,200.11,200.09,4.54823505]
[1756734563359,128.13232821,200.11,200.1,4.54823505]
[1756734563569,128.13232821,200.11,200.02,7.92]
[1756734563769,128.13232821,200.11,200.03,4.56411441]
[1756734563960,128.13232821,200.11,200.04,4.56411441]
[1756734564160,128.13232821,200.11,200.05,4.56411441]
[1756734564360,128.13232821,200.11,200.06,4.56411441]
[1756734564565,128.13232821,200.11,200.07,4.56411441]
[1756734564763,128.13232821,200.11,200.02,7.92]
[1756734564764,128.13232821,200.11,200.08,4.56411441]
[1756734564966,128.13232821,200.11,200.09,4.56411441]
[1756734565172,128.13232821,200.11,200.02,7.92]
[1756734565373,128.13232821,200.11,200.03,4.56373196]
[1756734565667,0.03232821,200.11,200.04,4.56373196]
[1756734565873,0.03232821,200.11,199.95,4.5008]
[1756734565874,128.13232821,200.11,200.05,12.48373196]
[1756734566074,128.13232821,200.11,200.06,4.56373196]
[1756734566371,128.1,200.11,200.07,4.56373196]
[1756734566567,128.13821356,200.11,200.08,4.56373196]
[1756734566773,128.13821356,200.11,200.09,4.56373196]
[1756734567074,128.13821356,200.11,200.1,4.56519326]
[1756734567473,128.13821356,200.11,200.03,7.92]
[1756734567674,128.13821356,200.11,200.04,4.56523395]
[1756734567870,128.13821356,200.11,200.0,4.49124658]
[1756734567871,128.13821356,200.11,200.05,4.56523395]
[1756734568070,128.13821356,200.11,200.06,4.56523395]
[1756734568269,128.13821356,200.11,200.07,4.56523395]
[1756734568574,128.13821356,200.11,200.08,4.56523395]
[1756734568775,128.12,200.1,199.99,7.92]
[1756734568973,128.12,200.1,200.0,4.57033633]
[1756734569175,132.61124658,200.1,200.01,4.57033633]
[1756734569368,132.61124658,200.1,200.02,4.57033633]
[1756734569565,0.03527783,200.07,200.03,4.57287706]
[1756734569876,4.49124658,200.04,199.95,7.92]
[1756734570174,23.76,200.03,199.96,4.57460677]
[1756734570370,23.76,200.03,199.95,7.92]
[1756734570567,0.03166637,200.01,199.95,7.92]
[1756734570770,0.03166637,200.01,199.93,4.16747581]
[1756734570970,0.03166637,200.01,199.91,7.92]
[1756734570971,4.52291295,200.01,199.91,7.92]
[1756734571971,4.52291295,200.01,199.85,7.92]
[1756734572170,4.49124658,199.98,199.85,7.92]
[1756734572571,51.52,199.97,199.85,7.92]
[1756734572777,0.03533008,199.93,199.85,7.92]
[1756734575774,128.14,199.92,199.85,7.92]
[1756734576480,128.14,199.92,199.8,7.92]
[1756734577073,126.0,199.91,199.8,7.92]
[1756734577275,0.03761539,199.88,199.8,7.92]
[1756734581182,0.03761539,199.88,199.8,12.41124658]
[1756734581382,0.03761539,199.88,199.81,7.98]
[1756734586474,0.03,199.87,199.75,7.98]
[1756734587281,0.03428688,199.83,199.75,7.98]
[1756734590982,0.03,199.82,199.75,7.98]
[1756734591180,49.53428688,199.83,199.75,7.98]
[1756734591892,0.03428688,199.83,199.75,7.98]
[1756734593992,0.03428688,199.83,199.75,10.78611618]
[1756734594186,0.03428688,199.83,199.76,7.98]
[1756734595791,0.03428688,199.83,199.79,7.98]
[1756734596095,336.3,199.91,199.82,7.98]
[1756734597190,336.3,199.91,199.85,0.03423989]
[1756734598393,336.3,199.91,199.86,7.98]
[1756734598593,336.3,199.91,199.85,0.03423989]
[1756734599393,0.05,199.9,199.85,0.03423989]
[1756734599590,340.78746876,199.91,199.85,0.03423989]
[1756734599985,0.05,199.9,199.85,0.03423989]
[1756734600290,4.48746876,199.88,199.85,0.03423989]
[1756734600492,0.05,199.86,199.85,0.03423989]
[1756734600687,0.05,199.88,199.85,0.03423989]
[1756734600887,0.05,199.86,199.85,0.03423989]
[1756734601794,128.23,199.87,199.85,0.03423989]
[1756734602196,0.05,199.87,199.85,0.03423989]
[1756734602395,128.18,199.86,199.85,0.03423989]
[1756734602803,128.23,199.86,199.85,0.03423989]
[1756734604301,128.73,199.86,199.76,7.98]
[1756734604494,4.48746876,199.85,199.76,7.98]
[1756734604894,128.18,199.84,199.76,7.98]
[1756734605501,0.03674703,199.82,199.76,7.98]
[1756734606701,0.03674703,199.82,199.79,7.98]
[1756734606897,336.3,199.91,199.79,7.98]
[1756734607093,128.18,199.9,199.79,7.98]
[1756734608094,128.18,199.9,199.83,0.03337906]
[1756734608796,336.39,199.91,199.83,0.03337906]
[1756734609095,0.09,199.89,199.83,0.03337906]
[1756734610997,132.66746876,199.9,199.83,0.03337906]
[1756734610998,128.25,199.88,199.83,0.03337906]
[1756734611494,336.3,199.91,199.83,0.03337906]
[1756734611702,128.16,199.9,199.83,0.03337906]
[1756734611898,0.09,199.89,199.83,0.03337906]
[1756734612902,0.09,199.86,199.83,0.03337906]
[1756734613201,4.48746876,199.87,199.83,0.03337906]
[1756734613202,0.09,199.84,199.83,0.03337906]
[1756734613698,0.59,199.84,199.83,0.03337906]
[1756734614599,5.07746876,199.84,199.83,0.03337906]
[1756734614998,0.09,199.84,199.83,0.03337906]
[1756734615200,128.16,199.84,199.83,0.03337906]
[1756734615895,128.25,199.84,199.83,0.03337906]
[1756734616097,128.16,199.84,199.83,0.03337906]
[1756734617096,0.09,199.88,199.83,0.03337906]
[1756734617302,128.16,199.87,199.83,0.03337906]
[1756734617695,0.09,199.86,199.83,0.03337906]
[1756734618001,128.16,199.87,199.83,0.03337906]
[1756734618598,0.09,199.86,199.83,0.03337906]
[1756734618794,128.16,199.87,199.83,0.03337906]
[1756734619001,0.09,199.86,199.83,0.03337906]
[1756734619201,128.16,199.87,199.83,0.03337906]
[1756734619402,0.09,199.86,199.83,0.03337906]
[1756734619904,128.14,199.85,199.83,7.53337906]
[1756734620105,128.14,199.84,199.83,7.53337906]
[1756734620502,128.14,199.84,199.83,0.03337906]
[1756734620503,128.23,199.84,199.83,0.03337906]
[1756734620702,0.09,199.9,199.83,0.03337906]
[1756734621003,128.14,199.89,199.83,0.03337906]
[1756734622805,128.14,199.88,199.83,0.03337906]
[1756734623008,128.23,199.88,199.83,7.53337906]
[1756734623303,0.09,199.87,199.83,0.03337906]
[1756734623701,128.14,199.88,199.83,0.03337906]
[1756734624709,0.09,199.87,199.83,0.03337906]
[1756734625008,128.14,199.88,199.83,0.03337906]
[1756734625204,0.09,199.87,199.83,0.03337906]
[1756734625405,128.14,199.88,199.83,0.03337906]
[1756734625607,0.09,199.85,199.83,0.03337906]
[1756734625816,0.06,199.83,199.74,7.5]
[1756734626106,0.06,199.83,199.7,11.66747581]
[1756734626107,4.48746876,199.82,199.7,11.66747581]
[1756734626314,4.48746876,199.82,199.7,7.5]
[1756734626703,4.48746876,199.82,199.7,11.66747581]
[1756734627108,0.0355337,199.78,199.7,11.66747581]
[1756734627304,128.12,199.77,199.7,11.66747581]
[1756734627804,128.12,199.77,199.7,7.5]
[1756734629816,0.0355337,199.78,199.7,11.66747581]
[1756734630014,0.0355337,199.78,199.72,11.98746876]
[1756734630316,0.0355337,199.78,199.73,7.5]
[1756734631916,0.0355337,199.78,199.72,8.65494457]
[1756734632412,0.0355337,199.78,199.73,7.5]
[1756734632617,0.09,199.89,199.76,7.5]
[1756734632812,336.3,199.91,199.79,7.5]
[1756734633021,464.42,199.91,199.79,11.98746876]
[1756734633219,464.42,199.91,199.8,7.5]
[1756734633422,336.3,199.91,199.82,4.48746876]
[1756734633719,336.3,199.91,199.83,7.5]
[1756734633914,0.09,199.9,199.85,0.0340929]
[1756734634320,0.09,199.9,199.79,7.5]
[1756734634521,128.1,199.89,199.79,7.5]
[1756734634719,128.1,199.89,199.86,0.03385181]
[1756734634915,0.09,199.88,199.86,0.03385181]
[1756734635120,0.09,199.88,199.75,7.5]
[1756734635428,4.48746876,199.89,199.85,0.03270958]
[1756734635722,128.1,199.88,199.79,7.5]
[1756734636116,128.1,199.87,199.85,0.03830896]
[1756734636818,336.39,199.91,199.85,0.03830896]
[1756734637022,128.08,199.9,199.86,7.5]
[1756734637219,128.08,199.9,199.85,0.03830896]
[1756734637422,128.08,199.9,199.85,7.53830896]
[1756734637623,336.3,199.91,199.85,7.53830896]
[1756734637819,128.08,199.9,199.86,7.94]
[1756734638418,128.08,199.9,199.85,0.03830896]
[1756734638619,128.08,199.9,199.86,7.94]
[1756734639325,0.08,199.89,199.85,0.03830896]
[1756734639522,128.08,199.9,199.85,0.03830896]
[1756734639717,336.3,199.91,199.85,0.03830896]
[1756734639919,128.08,199.89,199.85,0.03830896]
[1756734640421,128.08,199.89,199.86,7.94]
[1756734640615,128.08,199.89,199.85,0.03830896]
[1756734641013,128.08,199.89,199.85,7.97830896]
[1756734641219,128.08,199.89,199.86,7.94]
[1756734641427,128.08,199.89,199.85,0.03830896]
[1756734641616,4.48746876,199.99,199.86,7.94]
[1756734641820,128.14,199.98,199.86,7.94]
[1756734642027,0.08,199.98,199.86,7.94]
[1756734642230,43.44,199.97,199.86,12.42746876]
[1756734642525,43.44,199.97,199.9,0.0381776]
[1756734643129,0.08,199.96,199.9,0.0381776]
[1756734644716,4.56746876,199.96,199.9,0.0381776]
[1756734645320,0.08,199.92,199.9,0.0381776]
[1756734645627,4.48746876,199.93,199.8,7.94]
[1756734645628,90.04,199.91,199.8,7.94]
[1756734645931,4.48746876,199.9,199.8,7.94]
[1756734646831,0.03426453,199.87,199.8,7.94]
[1756734647429,0.11426453,199.87,199.76,12.14176056]
[1756734647629,0.11426453,199.87,199.77,1.97021213]
[1756734647828,0.08,199.87,199.78,1.97021213]
[1756734648129,0.03202051,199.84,199.79,1.97027759]
[1756734648430,0.03202051,199.84,199.78,7.94]
[1756734648627,52.16,199.89,199.79,1.97012879]
[1756734648825,0.03221053,199.83,199.77,4.20176056]
[1756734649025,0.03221053,199.83,199.79,7.94]
[1756734649426,0.03221053,199.83,199.77,7.94]
[1756734649629,0.03221053,199.83,199.78,1.97017344]
[1756734649931,0.03221053,199.83,199.79,1.97017344]
[1756734650128,0.03221053,199.83,199.78,7.94]
[1756734650330,0.03221053,199.83,199.79,6.61800919]
[1756734650529,0.03221053,199.83,199.81,7.94]
[1756734650725,0.03221053,199.83,199.82,12.58785877]
[1756734651430,0.03221053,199.83,199.82,13.08785877]
[1756734652430,0.03221053,199.83,199.82,8.44]
[1756734652628,0.03221053,199.83,199.82,13.08674835]
[1756734652931,0.08,199.92,199.82,5.14674835]
[1756734653127,0.08,199.92,199.83,12.58674835]
[1756734653432,0.08,199.92,199.84,4.64674835]
[1756734653733,0.08,199.92,199.85,4.64674835]
[1756734653933,0.08,199.92,199.86,4.64674835]
[1756734654127,0.08,199.92,199.87,4.64674835]
[1756734654323,0.08,199.92,199.88,4.64674835]
[1756734654529,0.08,199.92,199.89,4.64674835]
[1756734654828,0.08,199.92,199.9,4.64674835]
[1756734655130,0.08,199.92,199.91,4.64674835]
[1756734655630,336.45,199.96,199.91,4.64674835]
[1756734655833,464.45,199.96,199.92,4.64674835]
[1756734656028,464.45,199.96,199.93,4.64674835]
[1756734656230,464.45,199.96,199.94,4.64674835]
[1756734656536,464.34,199.96,199.95,4.64674835]
[1756734656829,336.34,199.96,199.95,4.64674835]
[1756734657035,336.34,199.96,199.95,12.58674835]
[1756734657335,336.34,199.96,199.95,4.64674835]
[1756734658340,336.45,199.96,199.95,4.64674835]
[1756734659040,336.95,199.96,199.95,4.64674835]
[1756734659243,336.45,199.96,199.92,0.03388581]
[1756734659441,336.34,199.96,199.92,7.97388581]
[1756734660036,0.11,199.95,199.92,0.03388581]
[1756734660340,336.34,199.96,199.92,0.03388581]
[1756734660646,127.96,199.95,199.92,7.97388581]
[1756734660849,127.96,199.95,199.93,7.94]
[1756734662441,0.11,200.03,199.93,7.94]
[1756734662648,48.64,200.02,199.93,7.94]
[1756734663243,48.64,200.02,199.96,0.03670045]
[1756734663443,48.64,200.02,199.97,4.58854905]
[1756734663642,48.64,200.02,199.98,4.58854905]
[1756734663842,0.11,200.01,199.99,4.58854905]
[1756734664043,0.11,200.01,200.0,4.58854905]
[1756734664445,48.64,200.02,200.0,4.58854905]
[1756734664744,48.64,200.02,200.01,4.58854905]
[1756734665050,48.75,200.02,200.01,4.58854905]
[1756734666453,49.25,200.02,199.96,0.03670045]
[1756734666746,48.75,200.02,199.96,0.03670045]
[1756734668053,127.9,200.01,199.96,0.03670045]
[1756734668643,4.48746876,200.04,199.96,0.03670045]
[1756734668848,127.9,200.0,199.96,0.03670045]
[1756734669049,4.48746876,200.04,199.96,0.03670045]
[1756734669252,127.9,200.03,199.96,0.03670045]
[1756734669443,127.9,200.03,199.96,7.48670045]
[1756734672850,336.28,200.09,199.96,7.48670045]
[1756734673050,127.88,200.05,199.96,11.97416921]
[1756734673251,127.88,200.05,199.96,11.93746876]
[1756734673453,127.86,200.07,199.97,7.45]
[1756734673652,127.86,200.07,199.98,0.03743427]
[1756734674445,127.86,200.07,199.99,7.45]
[1756734676353,127.86,200.07,199.98,0.03743427]
[1756734677154,4.48746876,200.04,199.98,0.03743427]
[1756734678156,4.48746876,200.01,199.98,0.03743427]
[1756734678355,127.84,200.0,199.98,0.03743427]
[1756734679863,128.34,200.0,199.85,7.45]
[1756734680057,127.84,200.0,199.85,7.45]
[1756734681163,0.03539473,199.94,199.85,7.45]
[1756734681359,127.87539473,199.94,199.83,4.18380912]
[1756734681559,127.87539473,199.94,199.8,341.88234742]
[1756734681560,127.87539473,199.94,199.82,4.18380912]
[1756734681858,127.84,199.94,199.81,7.45]
[1756734682159,0.03153024,199.9,199.81,7.45]
[1756734685965,0.03153024,199.9,199.79,4.18380912]
[1756734686268,4.518999,199.9,199.76,7.45]
[1756734686466,4.48746876,199.87,199.76,7.45]
[1756734687168,0.03568762,199.83,199.76,7.45]
[1756734687368,55.97568762,199.83,199.76,7.45]
[1756734687567,0.03568762,199.83,199.76,7.45]
[1756734699166,0.03568762,199.83,199.71,8.02]
[1756734699570,4.48746876,199.86,199.71,8.02]
[1756734699970,0.0369347,199.79,199.71,8.02]
[1756734706280,4.48746876,199.77,199.67,8.02]
[1756734706878,4.3,199.76,199.67,8.02]
[1756734707181,0.0374765,199.74,199.67,8.02]
[1756734709279,4.52494526,199.74,199.62,8.02]
[1756734709484,46.58,199.73,199.62,8.02]
[1756734709679,89.82,199.72,199.62,8.02]
[1756734709881,4.48746876,199.74,199.62,8.02]
[1756734710081,0.03412465,199.69,199.62,8.02]
[1756734713184,127.85412465,199.69,199.62,8.02]
[1756734713382,0.03412465,199.69,199.62,8.02]
[1756734720596,0.03412465,199.69,199.62,12.5281]
[1756734720790,0.03412465,199.69,199.64,8.02]
[1756734721295,46.84,199.77,199.64,8.02]
[1756734721492,0.03186138,199.68,199.64,8.02]
[1756734721692,51.86,199.79,199.66,4.48746876]
[1756734721896,51.86,199.79,199.67,8.02]
[1756734722097,51.86,199.79,199.68,2.8080476]
[1756734722498,51.86,199.79,199.69,8.02]
[1756734727504,0.05,199.8,199.69,8.02]
[1756734727706,0.05,199.8,199.69,12.51312881]
[1756734727899,336.46,199.81,199.73,7.83]
[1756734728095,4.49312881,199.9,199.73,7.83]
[1756734728294,127.8,199.89,199.73,7.83]
[1756734728498,127.8,199.89,199.73,12.3356]
[1756734728702,127.8,199.89,199.73,7.83]
[1756734728904,4.49312881,199.87,199.73,7.83]
[1756734729300,46.86,199.86,199.73,7.83]
[1756734730198,0.04,199.85,199.73,7.83]
[1756734731402,91.16,199.84,199.73,7.83]
[1756734732005,0.04,199.85,199.73,7.83]
[1756734732204,127.72,199.84,199.73,7.83]
[1756734733004,0.04,199.81,199.68,7.83]
[1756734733705,0.04,199.78,199.68,7.83]
[1756734734004,0.04,199.76,199.68,7.83]
[1756734735200,0.04,199.75,199.63,7.83]
[1756734736803,0.04,199.72,199.59,7.83]
[1756734737205,4.49312881,199.73,199.67,0.03381172]
[1756734737706,0.04,199.72,199.67,0.03381172]
[1756734737907,4.49312881,199.73,199.67,0.03381172]
[1756734738305,0.04,199.69,199.67,0.03381172]
[1756734738503,63.84,199.68,199.67,0.03381172]
[1756734739209,356.03312881,199.8,199.67,0.03381172]
[1756734739210,107.7,199.69,199.67,0.03381172]
[1756734739404,107.74,199.7,199.67,0.03381172]
[1756734739603,107.74,199.7,199.62,7.83]
[1756734740002,107.74,199.7,199.67,0.03625487]
[1756734740203,0.04,199.7,199.67,0.03625487]
[1756734740407,0.04,199.75,199.67,0.03625487]
[1756734740701,127.68,199.74,199.67,0.03625487]
[1756734740903,127.68,199.74,199.65,7.83]
[1756734741102,127.68,199.74,199.69,0.03203707]
[1756734741306,127.72,199.74,199.69,0.03203707]
[1756734741710,127.68,199.74,199.69,0.03203707]
[1756734742008,0.04,199.73,199.69,0.03203707]
[1756734742708,127.68,199.73,199.69,7.86203707]
[1756734743008,127.68,199.73,199.69,0.03203707]
[1756734743198,0.04,199.71,199.69,0.03203707]
[1756734743398,4.49312881,199.72,199.69,0.03203707]
[1756734743609,0.04,199.71,199.69,0.03203707]
[1756734743814,4.99312881,199.72,199.69,0.03203707]
[1756734744011,2.85137174,199.7,199.6,7.83]
[1756734744301,127.66,199.69,199.6,7.83]
[1756734744504,127.66,199.72,199.63,7.83]
[1756734744702,2.85137174,199.75,199.65,2.81137174]
[1756734745011,130.51137174,199.75,199.66,7.83]
[1756734745409,0.03556448,199.72,199.66,7.83]
[1756734745810,0.03556448,199.72,199.68,2.81137174]
[1756734746106,0.03556448,199.72,199.67,7.83]
[1756734746910,0.03556448,199.72,199.66,4.49280632]
[1756734747110,0.03556448,199.72,199.67,7.83]
[1756734747514,0.03556448,199.72,199.65,7.83]
[1756734747701,0.03556448,199.72,199.66,7.83]
[1756734747907,42.3,199.78,199.66,7.83]
[1756734748409,0.03254942,199.71,199.66,7.83]
[1756734748912,42.3,199.78,199.66,7.83]
[1756734749413,42.3,199.78,199.69,7.83]
[1756734750008,0.04,199.79,199.69,7.83]
[1756734750214,127.64,199.78,199.69,7.83]
[1756734750413,464.16,199.8,199.69,7.83]
[1756734750714,336.52,199.8,199.69,7.83]
[1756734750904,336.52,199.8,199.7,4.55971036]
[1756734751107,336.52,199.8,199.71,12.38971036]
[1756734751308,336.52,199.8,199.72,4.55971036]
[1756734751508,336.52,199.8,199.73,4.55971036]
[1756734751716,336.52,199.8,199.74,4.55971036]
[1756734751904,336.59,199.8,199.75,7.83]
[1756734752110,0.07,199.79,199.69,7.83]
[1756734752306,336.52,199.8,199.69,7.83]
[1756734752812,336.52,199.8,199.72,7.83]
[1756734753313,336.52,199.8,199.74,0.03284514]
[1756734753508,127.6,199.82,199.75,7.83]
[1756734754116,127.6,199.82,199.76,4.5569655]
[1756734754314,127.6,199.82,199.77,4.5569655]
[1756734754611,127.6,199.82,199.78,12.3869655]
[1756734754812,127.6,199.82,199.79,4.5569655]
[1756734755007,0.07,199.86,199.8,4.5569655]
[1756734755214,0.07,199.87,199.81,4.5569655]
[1756734755414,0.07,199.85,199.82,4.5569655]
[1756734755713,127.58,199.86,199.78,7.83]
[1756734755714,127.58,199.86,199.83,4.5569655]
[1756734755915,0.07,199.85,199.84,4.5569655]
[1756734758215,0.09,199.86,199.84,4.5569655]
[1756734758412,4.58280632,199.86,199.85,4.5569655]
[1756734758618,4.58280632,199.86,199.69,4.18380912]
[1756734758619,0.5,199.85,199.73,7.71]
[1756734758916,4.49280632,199.82,199.73,7.71]
[1756734759105,127.56,199.81,199.66,8.67661544]
[1756734759305,4.49280632,199.79,199.67,7.71]
[1756734760015,0.03173991,199.75,199.67,7.71]
[1756734760216,126.77173991,199.75,199.67,7.71]
[1756734760912,0.03173991,199.75,199.67,7.71]
[1756734761118,0.03173991,199.75,199.67,12.217]
[1756734761312,0.03173991,199.75,199.68,7.71]
[1756734762116,0.03173991,199.75,199.69,4.49280632]
[1756734762306,0.03173991,199.75,199.7,7.71]
[1756734762507,0.03173991,199.75,199.69,4.49280632]
[1756734762718,0.03173991,199.75,199.7,7.71]
[1756734763013,0.03173991,199.75,199.69,4.49280632]
[1756734763217,0.03173991,199.75,199.67,7.71]
[1756734771117,0.03173991,199.75,199.69,7.71]
[1756734771317,0.03173991,199.75,199.71,7.71]
[1756734771517,0.03173991,199.75,199.72,4.54430348]
[1756734771716,0.03173991,199.75,199.73,4.54430348]
[1756734771923,0.03173991,199.75,199.74,4.54430348]
[1756734772118,0.03173991,199.75,199.65,7.71]
[1756734774127,0.03173991,199.75,199.66,4.54790347]
[1756734774326,0.03173991,199.75,199.68,7.71]
[1756734774623,0.03173991,199.75,199.69,4.54790347]
[1756734774928,15.94,199.78,199.7,4.54790347]
[1756734775125,0.03370264,199.73,199.71,4.54790347]
[1756734775324,0.03370264,199.73,199.72,4.54790347]
[1756734775929,0.03370264,199.73,199.72,12.25790347]
[1756734777226,0.03370264,199.73,199.72,4.54790347]
[1756734780531,0.03370264,199.73,199.72,7.71]
[1756734780732,0.03370264,199.73,199.72,4.54954954]
[1756734784134,0.03370264,199.73,199.72,12.25954954]
[1756734784637,0.03370264,199.73,199.72,4.54954954]
[1756734784934,0.03370264,199.73,199.72,12.25954954]
[1756734785235,0.03370264,199.73,199.72,4.54954954]
[1756734786535,0.53370264,199.73,199.72,4.54954954]
[1756734790336,0.53370264,199.73,199.64,7.71]
[1756734790535,0.03370264,199.73,199.64,7.71]
[1756734791336,4.49619409,199.72,199.64,7.71]
[1756734791528,4.49619409,199.72,199.59,7.82]
[1756734791730,4.49619409,199.69,199.59,7.82]
[1756734791927,22.46,199.68,199.59,7.82]
[1756734792343,4.49619409,199.66,199.59,7.82]
[1756734792531,0.03264148,199.65,199.59,7.82]
[1756734794141,66.29264148,199.65,199.59,7.82]
[1756734794939,0.03264148,199.65,199.59,7.82]
[1756734799738,0.03264148,199.65,199.6,7.82]
[1756734799938,336.6,199.72,199.6,7.82]
[1756734800131,464.0,199.72,199.6,7.82]
[1756734800335,336.6,199.72,199.61,7.82]
[1756734800535,336.6,199.72,199.63,7.82]
[1756734801337,336.63,199.72,199.63,7.82]
[1756734801643,336.63,199.72,199.66,0.03180985]
[1756734802443,336.63,199.72,199.66,7.85180985]
[1756734802444,336.6,199.72,199.66,7.85180985]
[1756734802641,336.63,199.72,199.67,7.82]
[1756734802941,127.38,199.71,199.67,7.82]
[1756734803544,127.41,199.71,199.67,7.82]
[1756734804543,0.03,199.7,199.66,0.03180985]
[1756734804944,0.03,199.7,199.66,7.85180985]
[1756734807040,0.03,199.7,199.66,0.03180985]
[1756734807245,127.38,199.71,199.66,0.03180985]
[1756734807448,0.03,199.69,199.66,0.03180985]
[1756734807641,4.49619409,199.7,199.66,0.03180985]
[1756734807943,2.81138098,199.68,199.66,0.03180985]
[1756734808143,2.84138098,199.68,199.66,0.03180985]
[1756734808648,2.81138098,199.68,199.66,0.03180985]
[1756734808836,0.03,199.67,199.66,0.03180985]
[1756734809938,2.81138098,199.68,199.66,0.03180985]
[1756734810136,0.03,199.67,199.66,0.03180985]
[1756734812341,127.34,199.67,199.66,0.03180985]
[1756734812553,127.37,199.67,199.66,0.03180985]
[1756734818154,127.37,199.67,199.59,7.82]
[1756734818155,0.03,199.66,199.59,7.82]
[1756734818353,2.81138098,199.63,199.59,7.82]
[1756734818559,127.32,199.62,199.59,7.82]
[1756734819061,127.35,199.62,199.53,7.97]
[1756734819260,127.35,199.62,199.53,4.18380912]
[1756734819460,127.35,199.62,199.54,7.97]
[1756734819863,0.032575,199.59,199.54,7.97]
[1756734820052,0.03,199.68,199.54,12.15380912]
[1756734820257,0.03,199.68,199.55,7.97]
[1756734820258,2.81138098,199.65,199.55,7.97]
[1756734820457,43.02689973,199.67,199.56,2.81138098]
[1756734820458,84.22,199.64,199.56,2.81138098]